fUSD/lending_fUSD_20250514
["ID","MTS","AMOUNT","RATE_DAILY","PERIOD"]
[361110664,1747264277020,-400.0,0.00012274,2]
[361110665,1747264277028,-400.0,0.00012274,2]
[361110666,1747264277038,-428.18,0.00012274,2]
[361110667,1747264277047,-400.0,0.00012274,2]
[361110668,1747264277056,-400.0,0.00012274,2]
[361110669,1747264277065,-400.0,0.00012274,2]
[361110670,1747264277075,-400.0,0.00012274,2]
[361110671,1747264277084,-400.0,0.00012274,2]
[361110672,1747264277093,-400.0,0.00012274,2]
[361110673,1747264277102,-400.0,0.00012274,2]
[361110674,1747264277112,-400.0,0.00012274,2]
[361110675,1747264277121,-400.0,0.00012274,2]
[361110676,1747264277130,-565.13,0.00012274,2]
[361110677,1747264277139,-400.0,0.00012274,2]
[361110678,1747264277148,-400.0,0.00012274,2]
[361110679,1747264277158,-400.0,0.00012274,2]
[361110680,1747264277168,-400.0,0.00012274,2]
[361110681,1747264277177,-403.39,0.00012274,2]
[361110682,1747264277186,-606.57,0.00012274,2]
[361110683,1747264277195,-400.0,0.00012274,2]
[361110684,1747264277205,-400.0,0.00012274,2]
[361110685,1747264277215,-400.0,0.00012274,2]
[361110686,1747264277225,-565.61,0.00012274,2]
[361110687,1747264277235,-407.23,0.00012274,2]
[361110688,1747264277244,-400.0,0.00012274,2]
[361110689,1747264277253,-543.08,0.00012274,2]
[361110690,1747264277262,-400.0,0.00012274,2]
[361110691,1747264277271,-400.0,0.00012274,2]
[361110692,1747264277281,-400.0,0.00012274,2]
[361110693,1747264277290,-2357.92,0.00012274,2]
[361110694,1747264277299,-614.62,0.00012274,2]
[361110695,1747264277308,-400.0,0.00012274,2]
[361110696,1747264277317,-783.540853,0.00012274,2]
[361110697,1747264277326,-568.91,0.00012274,2]
[361110698,1747264277335,-833.67,0.00012274,2]
[361110699,1747264277345,-400.0,0.00012274,2]
[361110700,1747264277354,-400.0,0.00012274,2]
[361110701,1747264277363,-442.74,0.00012274,2]
[361110702,1747264277373,-572.77,0.00012274,2]
[361110703,1747264277383,-547.5,0.00012274,2]
[361110704,1747264277393,-400.0,0.00012274,2]
[361110705,1747264277402,-1577.88,0.00012274,2]
[361110706,1747264277412,-400.0,0.00012274,2]
[361110707,1747264277421,-1143.94,0.00012274,2]
[361110708,1747264277430,-428.61,0.00012274,2]
[361110709,1747264277440,-400.0,0.00012274,2]
[361110710,1747264277450,-461.02,0.00012274,2]
[361110711,1747264277460,-400.0,0.00012274,2]
[361110712,1747264277469,-571.15,0.00012274,2]
[361110713,1747264277479,-400.0,0.00012274,2]
[361110714,1747264277488,-400.0,0.00012274,2]
[361110715,1747264277498,-575.08,0.00012274,2]
[361110716,1747264277508,-151.0,0.00012274,2]
[361110717,1747264277517,-400.0,0.00012274,2]
[361110718,1747264277527,-1410.22,0.00012274,2]
[361110719,1747264277536,-459.54,0.00012274,2]
[361110720,1747264277545,-10000.0,0.00012274,2]
[361110721,1747264277556,-151.0,0.00012274,2]
[361110722,1747264277571,-1444.34,0.00012274,2]
[361110723,1747264277580,-636.01,0.00012274,2]
[361110724,1747264277590,-409.88,0.00012274,2]
[361110725,1747264277599,-732.07,0.00012274,2]
[361110726,1747264277609,-772.23,0.00012274,2]
[361110727,1747264277619,-520.06,0.00012274,2]
[361110728,1747264277629,-200.0,0.00012274,2]
[361110729,1747264277639,-400.0,0.00012274,2]
[361110730,1747264277649,-1011.91,0.00012274,2]
[361110731,1747264277659,-737.17,0.00012274,2]
[361110732,1747264277669,-400.0,0.00012274,2]
[361110733,1747264277679,-400.0,0.00012274,2]
[361110734,1747264277688,-400.0,0.00012274,2]
[361110735,1747264277698,-400.0,0.00012274,2]
[361110736,1747264277707,-400.0,0.00012274,2]
[361110737,1747264277717,-578.03,0.00012274,2]
[361110738,1747264277726,-679.98,0.00012274,2]
[361110739,1747264277736,-831.99,0.00012274,2]
[361110740,1747264277746,-400.0,0.00012274,2]
[361110741,1747264277755,-400.0,0.00012274,2]
[361110742,1747264277764,-400.0,0.00012274,2]
[361110743,1747264277774,-853.7,0.00012274,2]
[361110744,1747264277783,-400.0,0.00012274,2]
[361110745,1747264277793,-517.5,0.00012274,2]
[361110746,1747264277803,-400.0,0.00012274,2]
[361110747,1747264277815,-400.0,0.00012274,2]
[361110748,1747264277825,-1518.62,0.00012275,2]
[361110749,1747264277835,-151.0,0.00012276,2]
[361110750,1747264277844,-288.223598,0.00012294,2]
[361110751,1747264277853,-206.217789,0.00012294,2]
[361110752,1747264277862,-1000.0,0.000123,2]
[361110753,1747264277871,-150.0,0.00012304,2]
[361110754,1747264277880,-866.14,0.0001231,2]
[361110755,1747264277889,-352.94,0.0001231,2]
[361110756,1747264277898,-352.94,0.0001231,2]
[361110757,1747264277907,-351.18,0.0001231,2]
[361110758,1747264277916,-904.9,0.00012315,2]
[361110759,1747264277925,-731.27,0.00012315,2]
[361110760,1747264277934,-150.54,0.00012356,2]
[361110761,1747264277943,-300.93,0.00012356,2]
[361110762,1747264277952,-150.0,0.00012356,2]
[361110763,1747264277961,-150.69,0.00012356,2]
[361110764,1747264277972,-150.0,0.00012356,2]
[361110765,1747264277982,-150.0,0.00012356,2]
[361110766,1747264277991,-150.0,0.00012365,2]
[361110767,1747264278001,-329.90154267,0.00012369,2]
[361110768,1747264278010,-150.0,0.00012379,2]
[361110769,1747264278020,-1000.0,0.000124,2]
[361110770,1747264278029,-150.0,0.00012425,2]
[361110771,1747264278039,-150.0,0.00012425,2]
[361110772,1747264278048,-1000.0,0.00012431,2]
[361110773,1747264278057,-150.0,0.00012436,2]
[361110774,1747264278066,-288.223598,0.00012447,2]
[361110775,1747264278076,-150.0,0.00012448,2]
[361110776,1747264278085,-300.91,0.00012454,2]
[361110777,1747264278095,-215.0738,0.00012461,2]
[361110778,1747264278104,-12435.68774081,0.00012478,2]
[361110779,1747264278113,-150.0,0.00012494,2]
[361110780,1747264278122,-1000.0,0.00012496,2]
[361110781,1747264278131,-297.74349195,0.000125,2]
[361110782,1747264278141,-1000.0,0.000125,2]
[361110783,1747264278150,-150.0,0.00012502,2]
[361110784,1747264278159,-200.0,0.0001251,2]
[361110785,1747264278168,-299.79625945,0.00012521,2]
[361110786,1747264278177,-156.587,0.0001254,2]
[361110787,1747264278187,-151.0,0.00012546,2]
[361110788,1747264278196,-151.0,0.00012546,2]
[361110789,1747264278206,-460.7,0.00012546,2]
[361110790,1747264278215,-400.0,0.00012546,2]
[361110791,1747264278225,-564.43,0.00012546,2]
[361110792,1747264278235,-591.33,0.00012546,2]
[361110793,1747264278244,-400.0,0.00012546,2]
[361110794,1747264278254,-400.0,0.00012546,2]
[361110795,1747264278263,-1034.53,0.00012546,2]
[361110796,1747264278273,-3042.34,0.00012546,2]
[361110797,1747264278282,-400.0,0.00012546,2]
[361110798,1747264278295,-688.76,0.00012546,2]
[361110799,1747264278304,-4870.56,0.00012546,2]
[361110800,1747264278313,-623.04,0.00012546,2]
[361110801,1747264278322,-1611.73,0.00012546,2]
[361110802,1747264278332,-583.04,0.00012546,2]
[361110803,1747264278341,-520.17,0.00012546,2]
[361110804,1747264278350,-400.0,0.00012546,2]
[361110805,1747264278359,-400.0,0.00012546,2]
[361110806,1747264278369,-904.64,0.00012546,2]
[361110807,1747264278378,-519.1,0.00012546,2]
[361110808,1747264278387,-400.0,0.00012546,2]
[361110809,1747264278397,-400.0,0.00012546,2]
[361110810,1747264278407,-455.41,0.00012546,2]
[361110811,1747264278416,-824.3,0.00012546,2]
[361110812,1747264278425,-1128.45,0.00012546,2]
[361110813,1747264278434,-531.71,0.00012546,2]
[361110814,1747264278443,-400.0,0.00012546,2]
[361110815,1747264278453,-1437.463881,0.00012546,2]
[361110816,1747264278462,-662.22,0.00012546,2]
[361110817,1747264278472,-400.0,0.00012546,2]
[361110818,1747264278481,-400.0,0.00012546,2]
[361110819,1747264278490,-400.0,0.00012547,2]
[361110820,1747264278499,-400.0,0.00012547,2]
[361110821,1747264278509,-763.26,0.00012547,2]
[361110822,1747264278518,-603.55,0.00012547,2]
[361110823,1747264278528,-400.0,0.00012547,2]
[361110824,1747264278537,-400.0,0.00012547,2]
[361110825,1747264278547,-836.53,0.00012547,2]
[361110826,1747264278556,-400.0,0.00012547,2]
[361110827,1747264278570,-400.0,0.00012547,2]
[361110828,1747264278580,-547.56,0.00012547,2]
[361110829,1747264278589,-400.0,0.00012547,2]
[361110830,1747264278599,-400.0,0.00012547,2]
[361110831,1747264278610,-453.66,0.00012547,2]
[361110832,1747264278619,-624.04,0.00012547,2]
[361110833,1747264278628,-456.79,0.00012547,2]
[361110834,1747264278638,-400.0,0.00012547,2]
[361110835,1747264278648,-554.63,0.00012547,2]
[361110836,1747264278658,-400.0,0.00012547,2]
[361110837,1747264278667,-400.0,0.00012547,2]
[361110838,1747264278676,-565.99,0.00012547,2]
[361110839,1747264278685,-400.0,0.00012547,2]
[361110840,1747264278695,-450.0,0.00012547,2]
[361110841,1747264278704,-306.2,0.00012547,2]
[361110842,1747264278713,-400.0,0.00012547,2]
[361110843,1747264278723,-231.93026574,0.00012547,2]
[361110844,1747264278732,-400.0,0.00012547,2]
[361110845,1747264278744,-400.0,0.00012547,2]
[361110846,1747264278753,-400.0,0.00012547,2]
[361110847,1747264278763,-400.0,0.00012547,2]
[361110848,1747264278772,-470.57,0.00012547,2]
[361110849,1747264278781,-724.75,0.00012547,2]
[361110850,1747264278791,-1542.16,0.00012547,2]
[361110851,1747264278800,-426.08,0.00012547,2]
[361110852,1747264278809,-400.0,0.00012547,2]
[361110853,1747264278819,-400.0,0.00012547,2]
[361110854,1747264278828,-400.0,0.00012547,2]
[361110855,1747264278837,-400.0,0.00012547,2]
[361110856,1747264278847,-400.0,0.00012547,2]
[361110857,1747264278857,-375.38,0.00012547,2]
[361110858,1747264278867,-400.0,0.00012547,2]
[361110859,1747264278876,-400.0,0.00012547,2]
[361110860,1747264278886,-400.0,0.00012547,2]
[361110861,1747264278895,-400.0,0.00012547,2]
[361110862,1747264278905,-400.0,0.00012547,2]
[361110863,1747264278915,-400.0,0.00012547,2]
[361110864,1747264278924,-400.0,0.00012547,2]
[361110865,1747264278933,-203.37346436,0.00012547,2]
[361110866,1747264278942,-400.0,0.00012547,2]
[361110867,1747264278952,-238.99,0.00012547,2]
[361110868,1747264278962,-409.69,0.00012547,2]
[361110869,1747264278971,-400.0,0.00012547,2]
[361110870,1747264278980,-400.0,0.00012547,2]
[361110871,1747264278989,-561.38,0.00012547,2]
[361110872,1747264278998,-400.0,0.00012547,2]
[361110873,1747264279007,-400.0,0.00012547,2]
[361110874,1747264279017,-400.0,0.00012547,2]
[361110875,1747264279026,-400.0,0.00012547,2]
[361110876,1747264279035,-400.0,0.00012547,2]
[361110877,1747264279045,-400.0,0.00012547,2]
[361110878,1747264279054,-400.0,0.00012547,2]
[361110879,1747264279063,-400.0,0.00012547,2]
[361110880,1747264279072,-400.0,0.00012547,2]
[361110881,1747264279082,-483.14,0.00012547,2]
[361110882,1747264279091,-400.0,0.00012547,2]
[361110883,1747264279100,-400.0,0.00012547,2]
[361110884,1747264279109,-400.0,0.00012547,2]
[361110885,1747264279119,-400.0,0.00012547,2]
[361110886,1747264279128,-1223.31,0.00012547,2]
[361110887,1747264279137,-400.0,0.00012547,2]
[361110888,1747264279147,-400.0,0.00012547,2]
[361110889,1747264279157,-979.31,0.00012547,2]
[361110890,1747264279166,-400.0,0.00012547,2]
[361110891,1747264279176,-400.0,0.00012547,2]
[361110892,1747264279186,-1142.69,0.00012547,2]
[361110893,1747264279195,-400.0,0.00012547,2]
[361110894,1747264279205,-400.0,0.00012547,2]
[361110895,1747264279214,-400.0,0.00012547,2]
[361110896,1747264279224,-686.05,0.00012547,2]
[361110897,1747264279234,-400.0,0.00012547,2]
[361110898,1747264279244,-748.6,0.00012547,2]
[361110899,1747264279253,-417.26,0.00012547,2]
[361110900,1747264279263,-225.33,0.00012547,2]
[361110901,1747264279273,-400.0,0.00012547,2]
[361110902,1747264279283,-1113.06,0.00012547,2]
[361110903,1747264279292,-795.08,0.00012547,2]
[361110904,1747264279302,-400.0,0.00012547,2]
[361110905,1747264279311,-400.0,0.00012547,2]
[361110906,1747264279321,-400.0,0.00012547,2]
[361110907,1747264279331,-1333.23,0.00012547,2]
[361110908,1747264279340,-463.71290251,0.00012547,2]
[361110909,1747264279350,-2056.57,0.00012547,2]
[361110910,1747264279360,-694.96,0.00012547,2]
[361110911,1747264279369,-400.0,0.00012547,2]
[361110912,1747264279379,-915.71,0.00012547,2]
[361110913,1747264279388,-412.24,0.00012547,2]
[361110914,1747264279399,-400.0,0.00012547,2]
[361110915,1747264279409,-906.0,0.00012547,2]
[361110916,1747264279419,-400.0,0.00012547,2]
[361110917,1747264279428,-400.0,0.00012547,2]
[361110918,1747264279438,-920.87,0.00012547,2]
[361110919,1747264279448,-400.0,0.00012547,2]
[361110920,1747264279458,-1261.05,0.00012547,2]
[361110921,1747264279467,-1187.04,0.00012547,2]
[361110922,1747264279477,-400.0,0.00012547,2]
[361110923,1747264279487,-1289.05,0.00012547,2]
[361110924,1747264279497,-400.0,0.00012547,2]
[361110925,1747264279507,-2923.35,0.00012547,2]
[361110926,1747264279517,-400.0,0.00012547,2]
[361110927,1747264279527,-1022.61,0.00012547,2]
[361110928,1747264279538,-711.84,0.00012547,2]
[361110929,1747264279548,-977.42,0.00012547,2]
[361110930,1747264279558,-400.0,0.00012547,2]
[361110931,1747264279568,-890.2,0.00012547,2]
[361110932,1747264279578,-400.0,0.00012547,2]
[361110933,1747264279587,-1350.79,0.00012547,2]
[361110934,1747264279597,-541.83,0.00012547,2]
[361110935,1747264279607,-5623.4,0.00012547,2]
[361110936,1747264279618,-400.0,0.00012547,2]
[361110937,1747264279628,-1902.44,0.00012547,2]
[361110938,1747264279638,-400.0,0.00012547,2]
[361110939,1747264279648,-400.0,0.00012547,2]
[361110940,1747264279658,-400.0,0.00012547,2]
[361110941,1747264279668,-400.0,0.00012547,2]
[361110942,1747264279678,-400.0,0.00012547,2]
[361110943,1747264279688,-400.0,0.00012547,2]
[361110944,1747264279698,-708.2,0.00012547,2]
[361110945,1747264279708,-5758.42,0.00012547,2]
[361110946,1747264279718,-3168.59,0.00012547,2]
[361110947,1747264279727,-11160.2,0.00012547,2]
[361110948,1747264279737,-400.0,0.00012547,2]
[361110949,1747264279747,-400.0,0.00012547,2]
[361110950,1747264279757,-2221.92,0.00012547,2]
[361110951,1747264279767,-400.0,0.00012547,2]
[361110952,1747264279777,-400.0,0.00012547,2]
[361110953,1747264279787,-869.38,0.00012547,2]
[361110954,1747264279797,-400.0,0.00012547,2]
[361110955,1747264279807,-547.37,0.00012547,2]
[361110956,1747264279816,-400.0,0.00012547,2]
[361110957,1747264279827,-1582.57,0.00012547,2]
[361110958,1747264279837,-1327.27,0.00012547,2]
[361110959,1747264279847,-400.0,0.00012547,2]
[361110960,1747264279857,-400.0,0.00012547,2]
[361110961,1747264279867,-674.11,0.00012547,2]
[361110962,1747264279878,-400.0,0.00012547,2]
[361110963,1747264279887,-400.0,0.00012547,2]
[361110964,1747264279897,-400.0,0.00012547,2]
[361110965,1747264279907,-400.0,0.00012547,2]
[361110966,1747264279917,-400.0,0.00012547,2]
[361110967,1747264279928,-531.23,0.00012547,2]
[361110968,1747264279938,-589.15,0.00012547,2]
[361110969,1747264279948,-467.93,0.00012547,2]
[361110970,1747264279957,-3055.08,0.00012547,2]
[361110971,1747264279967,-906.91,0.00012547,2]
[361110972,1747264279978,-891.28,0.00012547,2]
[361110973,1747264279988,-400.0,0.00012547,2]
[361110974,1747264279998,-400.0,0.00012547,2]
[361110975,1747264280008,-400.77,0.00012547,2]
[361110976,1747264280019,-400.0,0.00012547,2]
[361110977,1747264280029,-390.57027949,0.00012547,2]
[361110978,1747264280039,-400.0,0.00012547,2]
[361110979,1747264280048,-983.55,0.00012547,2]
[361110980,1747264280058,-400.0,0.00012547,2]
[361110981,1747264280068,-588.18,0.00012547,2]
[361110982,1747264280078,-400.0,0.00012547,2]
[361110983,1747264280088,-2072.02,0.00012547,2]
[361110984,1747264280099,-3903.54,0.00012547,2]
[361110985,1747264280108,-345.43,0.00012547,2]
[361110986,1747264280118,-1202.41,0.00012547,2]
[361110987,1747264280129,-400.0,0.00012547,2]
[361110988,1747264280139,-400.0,0.00012547,2]
[361110989,1747264280148,-980.88,0.00012547,2]
[361110990,1747264280158,-400.73,0.00012547,2]
[361110991,1747264280168,-5749.86,0.00012547,2]
[361110992,1747264280178,-498.76,0.00012547,2]
[361110993,1747264280188,-445.36,0.00012547,2]
[361110994,1747264280198,-400.0,0.00012547,2]
[361110995,1747264280209,-599.43,0.00012547,2]
[361110996,1747264280219,-400.0,0.00012547,2]
[361110997,1747264280229,-20037.7,0.00012547,2]
[361110998,1747264280239,-1349.87,0.00012547,2]
[361110999,1747264280248,-805.12,0.00012547,2]
[361111000,1747264280258,-434.42,0.00012547,2]
[361111001,1747264280268,-892.69,0.00012547,2]
[361111002,1747264280278,-1683.5,0.00012547,2]
[361111003,1747264280288,-437.47,0.00012547,2]
[361111004,1747264280298,-593.48,0.00012547,2]
[361111005,1747264280308,-639.24,0.00012547,2]
[361111006,1747264280318,-5740.66,0.00012547,2]
[361111007,1747264280327,-65970.0,0.00012547,2]
[361111008,1747264280338,-400.0,0.00012547,2]
[361111009,1747264280349,-527.29,0.00012547,2]
[361111010,1747264280360,-400.0,0.00012547,2]
[361111011,1747264280370,-400.0,0.00012547,2]
[361111012,1747264280380,-11054.36,0.00012547,2]
[361111013,1747264280390,-1094.62,0.00012547,2]
[361111014,1747264280400,-400.0,0.00012547,2]
[361111015,1747264280410,-400.0,0.00012547,2]
[361111016,1747264280420,-400.0,0.00012547,2]
[361111017,1747264280431,-492.15,0.00012547,2]
[361111018,1747264280441,-400.0,0.00012547,2]
[361111019,1747264280451,-400.0,0.00012547,2]
[361111020,1747264280461,-459.17,0.00012547,2]
[361111021,1747264280472,-400.0,0.00012547,2]
[361111022,1747264280483,-400.0,0.00012547,2]
[361111023,1747264280492,-400.0,0.00012547,2]
[361111024,1747264280503,-2539.0,0.00012547,2]
[361111025,1747264280513,-642.94,0.00012547,2]
[361111026,1747264280523,-400.0,0.00012547,2]
[361111027,1747264280534,-400.0,0.00012547,2]
[361111028,1747264280544,-400.0,0.00012547,2]
[361111029,1747264280554,-2633.62,0.00012547,2]
[361111030,1747264280564,-1818.85,0.00012547,2]
[361111031,1747264280577,-400.0,0.00012547,2]
[361111032,1747264280587,-2188.1,0.00012547,2]
[361111033,1747264280597,-467.74,0.00012547,2]
[361111034,1747264280609,-560.77,0.00012547,2]
[361111035,1747264280619,-831.49,0.00012547,2]
[361111036,1747264280630,-1172.14,0.00012547,2]
[361111037,1747264280640,-750.29,0.00012547,2]
[361111038,1747264280651,-571.17,0.00012547,2]
[361111039,1747264280661,-151.0,0.00012548,2]
[361111040,1747264280671,-223.599367,0.00012548,2]
[361111041,1747264280681,-400.0,0.00012548,2]
[361111042,1747264280691,-400.0,0.00012548,2]
[361111043,1747264280701,-400.0,0.00012548,2]
[361111044,1747264280711,-703.02,0.00012548,2]
[361111045,1747264280721,-174.03614723,0.00012548,2]
[361111046,1747264280731,-538.13,0.00012548,2]
[361111047,1747264280741,-768.77,0.00012548,2]
[361111048,1747264280751,-400.0,0.00012548,2]
[361111049,1747264280761,-400.0,0.00012548,2]
[361111050,1747264280771,-332.8919253,0.00012548,2]
[361111051,1747264280781,-400.0,0.00012548,2]
[361111052,1747264280791,-388.49073047,0.00012548,2]
[361111053,1747264280800,-425.54,0.00012548,2]
[361111054,1747264280810,-400.0,0.00012548,2]
[361111055,1747264280820,-902.52,0.00012548,2]
[361111056,1747264280830,-400.0,0.00012548,2]
[361111057,1747264280839,-444.04,0.00012548,2]
[361111058,1747264280849,-400.0,0.00012548,2]
[361111059,1747264280858,-400.0,0.00012548,2]
[361111060,1747264280868,-400.0,0.00012548,2]
[361111061,1747264280878,-478.11,0.00012548,2]
[361111062,1747264280888,-618.77,0.00012548,2]
[361111063,1747264280898,-914.64,0.00012548,2]
[361111064,1747264280908,-405.64,0.00012548,2]
[361111065,1747264280918,-592.23,0.00012548,2]
[361111066,1747264280928,-1199.27,0.00012548,2]
[361111067,1747264280938,-943.59,0.00012548,2]
[361111068,1747264280948,-410.46390197,0.00012548,2]
[361111069,1747264280958,-400.0,0.00012548,2]
[361111070,1747264280968,-400.0,0.00012548,2]
[361111071,1747264280977,-428.18,0.00012548,2]
[361111072,1747264280987,-400.0,0.00012548,2]
[361111073,1747264280996,-400.0,0.00012548,2]
[361111074,1747264281006,-400.0,0.00012548,2]
[361111075,1747264281016,-247.07,0.00012548,2]
[361111076,1747264281027,-400.0,0.00012548,2]
[361111077,1747264281039,-400.0,0.00012548,2]
[361111078,1747264281050,-400.0,0.00012548,2]
[361111079,1747264281061,-400.0,0.00012548,2]
[361111080,1747264281070,-400.0,0.00012548,2]
[361111081,1747264281079,-565.13,0.00012548,2]
[361111082,1747264281089,-400.0,0.00012548,2]
[361111083,1747264281099,-403.39,0.00012548,2]
[361111084,1747264281109,-400.0,0.00012548,2]
[361111085,1747264281119,-400.0,0.00012548,2]
[361111086,1747264281130,-606.57,0.00012548,2]
[361111087,1747264281141,-401.61,0.00012548,2]
[361111088,1747264281150,-365.88237171,0.00012548,2]
[361111089,1747264281161,-400.0,0.00012548,2]
[361111090,1747264281171,-565.61,0.00012548,2]
[361111091,1747264281180,-407.23,0.00012548,2]
[361111092,1747264281190,-400.0,0.00012548,2]
[361111093,1747264281201,-543.08,0.00012548,2]
[361111094,1747264281211,-400.0,0.00012548,2]
[361111095,1747264281221,-400.0,0.00012548,2]
[361111096,1747264281230,-400.0,0.00012548,2]
[361111097,1747264281240,-2357.92,0.00012548,2]
[361111098,1747264281250,-614.62,0.00012548,2]
[361111099,1747264281259,-400.0,0.00012548,2]
[361111100,1747264281269,-568.91,0.00012548,2]
[361111101,1747264281278,-833.67,0.00012548,2]
[361111102,1747264281288,-400.0,0.00012548,2]
[361111103,1747264281297,-400.0,0.00012548,2]
[361111104,1747264281307,-442.74,0.00012548,2]
[361111105,1747264281317,-572.77,0.00012548,2]
[361111106,1747264281327,-547.5,0.00012548,2]
[361111107,1747264281338,-400.0,0.00012548,2]
[361111108,1747264281348,-1577.88,0.00012548,2]
[361111109,1747264281358,-400.0,0.00012548,2]
[361111110,1747264281368,-1143.94,0.00012548,2]
[361111111,1747264281378,-428.61,0.00012548,2]
[361111112,1747264281388,-400.0,0.00012548,2]
[361111113,1747264281398,-461.02,0.00012548,2]
[361111114,1747264281409,-400.0,0.00012548,2]
[361111115,1747264281418,-571.15,0.00012548,2]
[361111116,1747264281665,-400.0,0.00012548,2]
[361111117,1747264281678,-400.0,0.00012548,2]
[361111118,1747264281688,-575.08,0.00012548,2]
[361111119,1747264281698,-400.0,0.00012548,2]
[361111120,1747264281709,-1410.22,0.00012548,2]
[361111121,1747264281718,-459.54,0.00012548,2]
[361111122,1747264281728,-1444.34,0.00012548,2]
[361111123,1747264281740,-636.01,0.00012548,2]
[361111124,1747264281749,-409.88,0.00012548,2]
[361111125,1747264281759,-732.07,0.00012548,2]
[361111126,1747264281769,-772.23,0.00012548,2]
[361111127,1747264281778,-520.06,0.00012548,2]
[361111128,1747264281788,-400.0,0.00012548,2]
[361111129,1747264281797,-1011.91,0.00012548,2]
[361111130,1747264281807,-737.17,0.00012548,2]
[361111131,1747264281817,-400.0,0.00012548,2]
[361111132,1747264281827,-400.0,0.00012548,2]
[361111133,1747264281837,-400.0,0.00012548,2]
[361111134,1747264281847,-400.0,0.00012548,2]
[361111135,1747264281856,-578.03,0.00012548,2]
[361111136,1747264281866,-679.98,0.00012548,2]
[361111137,1747264281875,-831.99,0.00012548,2]
[361111138,1747264281885,-400.0,0.00012548,2]
[361111139,1747264281894,-400.0,0.00012548,2]
[361111140,1747264281905,-400.0,0.00012548,2]
[361111141,1747264281915,-853.7,0.00012548,2]
[361111142,1747264281924,-400.0,0.00012548,2]
[361111143,1747264281934,-517.5,0.00012548,2]
[361111144,1747264281944,-400.0,0.00012548,2]
[361111145,1747264281954,-1518.62,0.00012548,2]
[361111146,1747264281964,-265.21,0.00012548,2]
[361111147,1747264281974,-150.0,0.0001255,2]
[361111148,1747264281983,-1251.29779058,0.00012568,2]
[361111149,1747264281993,-150.0,0.0001257,2]
[361111150,1747264282003,-393.02113645,0.00012584,2]
[361111151,1747264282013,-150.0,0.00012585,2]
[361111152,1747264282023,-1000.0,0.000126,2]
[361111153,1747264282032,-288.223598,0.00012601,2]
[361111154,1747264282041,-1000.0,0.00012612,2]
[361111155,1747264282051,-150.0,0.00012617,2]
[361111156,1747264282061,-150.0,0.00012627,2]
[361111157,1747264282071,-150.0,0.00012629,2]
[361111158,1747264282080,-150.0,0.00012639,2]
[361111159,1747264282089,-150.0,0.00012652,2]
[361111160,1747264282100,-150.0,0.00012652,2]
[361111161,1747264282110,-150.0,0.00012655,2]
[361111162,1747264282121,-150.0,0.00012671,2]
[361111163,1747264282131,-547.27,0.00012695,2]